Workbook

Sheet 12
L2: Formulário de Candidatura
L5: Apoio à Aquisição de Manuais Escolares
B9: 1. Dados de candidatura (a preencher pela CMF) | AS9: DATA DE ENTREGA
B11: Registo Nº: | O11: Data de entrega: | AS11: =YEAR(U11) -> 1900 | AT11: =MONTH(U11) -> 1 | AU11: =DAY(U11) -> 0
B13: Obs:
B15: 2. A preencher pelos pais e/ou encarregado/a de educação
B16: 2.1 Identificação dos pais e/ou encarregado/a de educação
B18: Nome: | AS18: DATA DE NASCIMENTO | AV18: Ligações das caixas | AX18: procura das ligações nas listas
B20: C.C.: | O20: NIF: | AA20: Contacto telefónico:
B22: Endereço eletrónico
B24: 2.2. Identificação do/a aluno/a
B26: Nome: | AS26: DATA DE NASCIMENTO | AV26: Ligações das caixas | AX26: procura das ligações nas listas
B28: C.C.: | O28: NIF: | AB28: Ano Escolaridade:
B30: Escola
B32: 2.3. Documentos a entregar
E34: 1- | F34: Cartão de cidadão do/a aluno/a | AR34: FALSE | AS34: =IF(AR34=TRUE,1,0) -> 0
E36: 2- | F36: Cartão de cidadão do pai/ mãe/ encarregado/a de educação
E38: 3- | F38: Declaração de matrícula, com informação sobre ação social educativa/ informação atestada no presente formulário (campo 6) | AR38: FALSE
B41: 2.4. Observações
B44: Declaro, por minha honra, que todas as informações atrás prestadas são verdadeiras, autorizando a Câmara Municipal do Funchal a efetuar todas as averiguações que considerar à análise desta candidatura.
Y45: Assinatura
T46: Funchal, _____ de _______________ de 2017 | AT46: DATAS DE NASCIMENTO
B48: 3. A preencher pela escola
B49: Nota: O preenchimento deste campo, desde que devidamente autenticado, substitui a obrigatoriedade de entregar a declaração de matrícula.
B51: Atesto que, no ano letivo 2017/18, o/a aluno/a
S53: se encontra matriculado/a no | AE53: ano de escolaridade desta escola.
B54: O/a aluno/a:
E55: é beneficiário da ação social educativa
E56: não é beneficiário da ação social educativa
E59: Assinatura e carimbo | S59: Funchal, ____ de ________________ de 2017
B61: 4. A preencher pela Câmara Municipal do Funchal
B62: 4.1. Apuramento do apoio
C64: Voucher | E64: Nome | P64: ASE | V64: Ano de escolaridade | AI64: Valor
B65: 1
B66: 2 | C66: =IFERROR(VLOOKUP(B66,$BD$140:$CA$163,4,0),"") ->  | E66: =IFERROR(VLOOKUP(B66,$BD$140:$CA$164,5,0),"") ->  | P66: =IFERROR(VLOOKUP(B66,$BD$140:$CA$164,6,0),"") ->  | AI66: =IFERROR(IF(C66="","",(VLOOKUP(B66,$BD$140:$CB$163,25,0))),"") -> 
B68: 4.2.. Despacho do Departamento de Educação e Qualidade de Vida
C72: O/A Técnico/a: | AD72: Data:
B74: 4.3. Despacho do Presidente da CMF ou Vereador/a com a competência delegada
BS131: =BS133/6 -> 421.32 | BU131: =BU133/2 -> 421.32
BQ133: 6X | BS133: 2527.92 | BT133: 2X | BU133: 842.64
BL135: DATA | BO135: REND. ANUAL | BS135: REND. MENSAL PER CAPITA | BU135: REND. MENSAL PER CAPITA | BW135: Nº PESSOAS DO AGREGADO | BY135: Nº DE DEPENDENTES
BL137: =IF(G72="",U11,G72) -> 00:00:00 | BO137: =#REF! ->  | BS137: =#REF! ->  | BU137: =#REF! ->  | BW137: =COUNTIF(#REF!,"Dependente") ->  | BY137: =COUNTIF(#REF!,"Dependente") -> 
BD138: 1 | BE138: 2 | BF138: 3 | BG138: 4 | BH138: 5 | BI138: 6 | BJ138: 7 | BK138: 8 | BL138: 9 | BM138: 10 | BN138: 11 | BO138: 12 | BP138: 13 | BQ138: 14 | BR138: 15 | BS138: 16 | BT138: 17 | BU138: 18 | BV138: 19 | BW138: 20 | BX138: 21 | BY138: 22 | BZ138: 23 | CA138: 25 | CB138: 26
BC139: Nº DE ORDEM ESCOLAS | BD139: Nº DE ORDEM SUBVENÇÃO | BE139: Nº DE LIGAÇÃO | BF139: VALOR DA LIGAÇÃO | BG139: Nº DE DEPENDENTE | BH139: NOME | BI139: SUBVENÇÃO | BJ139: HABILITAÇÕES | BK139: DATA DE NASCIMENTO | BL139: IDADE ANOS;MESES;DIAS | BM139: IDADE ANOS | BN139: IDADE meses | BO139: DOC. PRENCHE OU NÃO PREENCHE | BP139: validação creche | BQ139: validação escola | BR139: VALIDAÇÃO RENDIMENTOS ESCOLA | BS139: SETEMBRO | BT139: CODIGO NATALIDADE | BU139: DEPENDENTES | BV139: IDADE EM ANOS | BW139: COD. RENDimentos | BX139: MENOR QUE 6 ANOS | BY139: MENOR QUE 25 MAIOR QUE 6 ANOS | BZ139: MENOR QUE 25 ANOS | CA139: VALOR | CB139: A TRANPORTAR
BC140: =COUNTIF($BF140:BF$146,TRUE) -> 1 | BD140: =COUNTIF($BF$140:BF140,TRUE) -> 0 | BE140: 1 | BF140: FALSE | BG140: =IF(BF140=TRUE,#REF!,0) -> 0 | BH140: =IF(BF140=TRUE,#REF!,0) -> 0 | BI140: Natalidade | BK140: =IF(BF140=TRUE,VLOOKUP(BG140,#REF!,13,0),0) -> 00:00:00 | BL140: =YEAR($BL$137)-YEAR(BK140)-IF(OR(MONTH($BL$137)<MONTH(BK140),AND(MONTH($BL$137)=MONTH(BK140),DAY($BL$137)<DAY(BK140))),1,0)&";" & MONTH($BL$137)-MONTH(BK140)+IF(AND(MONTH($BL$137)<=MONTH(BK140),DAY($BL$137)<DAY(BK140)),11,IF(AND(MONTH($BL$137)<MONTH(BK140),DAY($BL$137)>=DAY(BK140)),12,IF(AND(MONTH($BL$137)>MONTH(BK140),DAY($BL$137)<DAY(BK140)),-1)))&"; "&$BL$137-DATE(YEAR($BL$137),MONTH($BL$137)-IF(DAY($BL$137)<DAY(BK140),1,0),DAY(BK140)) -> 0;0; 0 | BM140: =YEAR($BL$137)-YEAR(BK140)-IF(OR(MONTH($BL$137)<MONTH(BK140),AND(MONTH($BL$137)=MONTH(BK140),DAY($BL$137)<DAY(BK140))),1,0) -> 0 | BN140: =MONTH($BL$137)-MONTH(BK140)+IF(AND(MONTH($BL$137)<=MONTH(BK140),DAY($BL$137)<DAY(BK140)),11,IF(AND(MONTH($BL$137)<MONTH(BK140),DAY($BL$137)>=DAY(BK140)),12,IF(AND(MONTH($BL$137)>MONTH(BK140),DAY($BL$137)<DAY(BK140)),-1))) -> 0 | BO140: =IF(#REF!=4,1,0) ->  | BT140: =CONCATENATE(BU140,BV140,BW140) ->  | BU140: =IF($BY$137>=3,3,$BY$137) ->  | BV140: =IF(BM140<3,BM140,"") -> 0 | BW140: =VLOOKUP($BO$137,$BC$196:$BE$199,3,1) ->  | CA140: =IFERROR(IF(BO140=1,VLOOKUP(BT140,$BC$167:$BM$193,10,0),""),0) -> 0 | CB140: =IFERROR(IF(BO140=1,VLOOKUP(BT140,$BC$167:$BM$193,11,0),""),0) -> 0
BC141: =COUNTIF($BF141:BF$146,TRUE) -> 1 | BD141: =COUNTIF($BF$140:BF141,TRUE) -> 0 | BE141: 2 | BF141: FALSE | BG141: =IF(BF141=TRUE,#REF!,0) -> 0 | BH141: =IF(BF141=TRUE,#REF!,0) -> 0 | BI141: Natalidade | BK141: =IF(BF141=TRUE,VLOOKUP(BG141,#REF!,13,0),0) -> 00:00:00 | BL141: =YEAR($BL$137)-YEAR(BK141)-IF(OR(MONTH($BL$137)<MONTH(BK141),AND(MONTH($BL$137)=MONTH(BK141),DAY($BL$137)<DAY(BK141))),1,0)&";" & MONTH($BL$137)-MONTH(BK141)+IF(AND(MONTH($BL$137)<=MONTH(BK141),DAY($BL$137)<DAY(BK141)),11,IF(AND(MONTH($BL$137)<MONTH(BK141),DAY($BL$137)>=DAY(BK141)),12,IF(AND(MONTH($BL$137)>MONTH(BK141),DAY($BL$137)<DAY(BK141)),-1)))&"; "&$BL$137-DATE(YEAR($BL$137),MONTH($BL$137)-IF(DAY($BL$137)<DAY(BK141),1,0),DAY(BK141)) -> 0;0; 0 | BM141: =YEAR($BL$137)-YEAR(BK141)-IF(OR(MONTH($BL$137)<MONTH(BK141),AND(MONTH($BL$137)=MONTH(BK141),DAY($BL$137)<DAY(BK141))),1,0) -> 0 | BN141: =MONTH($BL$137)-MONTH(BK141)+IF(AND(MONTH($BL$137)<=MONTH(BK141),DAY($BL$137)<DAY(BK141)),11,IF(AND(MONTH($BL$137)<MONTH(BK141),DAY($BL$137)>=DAY(BK141)),12,IF(AND(MONTH($BL$137)>MONTH(BK141),DAY($BL$137)<DAY(BK141)),-1))) -> 0 | BO141: =IF(#REF!=4,1,0) ->  | BT141: =CONCATENATE(BU141,BV141,BW141) ->  | BU141: =IF($BY$137>=3,3,$BY$137) ->  | BV141: 0 | BW141: =VLOOKUP($BO$137,$BC$196:$BE$199,3,1) ->  | CA141: =IFERROR(IF(BO141=1,VLOOKUP(BT141,$BC$167:$BM$193,10,0),""),0) -> 0 | CB141: =IFERROR(IF(BO141=1,VLOOKUP(BT141,$BC$167:$BM$193,11,0),""),0) -> 0
BC142: =COUNTIF($BF142:BF$146,TRUE) -> 1 | BD142: =COUNTIF($BF$140:BF142,TRUE) -> 0 | BE142: 3 | BF142: FALSE | BG142: =IF(BF142=TRUE,#REF!,0) -> 0 | BH142: =IF(BF142=TRUE,#REF!,0) -> 0 | BI142: Natalidade | BK142: =IF(BF142=TRUE,VLOOKUP(BG142,#REF!,13,0),0) -> 00:00:00 | BL142: =YEAR($BL$137)-YEAR(BK142)-IF(OR(MONTH($BL$137)<MONTH(BK142),AND(MONTH($BL$137)=MONTH(BK142),DAY($BL$137)<DAY(BK142))),1,0)&";" & MONTH($BL$137)-MONTH(BK142)+IF(AND(MONTH($BL$137)<=MONTH(BK142),DAY($BL$137)<DAY(BK142)),11,IF(AND(MONTH($BL$137)<MONTH(BK142),DAY($BL$137)>=DAY(BK142)),12,IF(AND(MONTH($BL$137)>MONTH(BK142),DAY($BL$137)<DAY(BK142)),-1)))&"; "&$BL$137-DATE(YEAR($BL$137),MONTH($BL$137)-IF(DAY($BL$137)<DAY(BK142),1,0),DAY(BK142)) -> 0;0; 0 | BM142: 0 | BN142: 0 | BO142: =IF(#REF!=4,1,0) ->  | BV142: 0 | CA142: 0 | CB142: 0
BC143: =COUNTIF($BF143:BF$146,TRUE) -> 1 | BD143: =COUNTIF($BF$140:BF143,TRUE) -> 0 | BE143: 4 | BF143: FALSE | BG143: =IF(BF143=TRUE,#REF!,0) -> 0 | BH143: =IF(BF143=TRUE,#REF!,0) -> 0 | BI143: Natalidade | BK143: =IF(BF143=TRUE,VLOOKUP(BG143,#REF!,13,0),0) -> 00:00:00 | BL143: 0;0; 0 | BM143: 0 | BN143: 0 | BO143: =IF(#REF!=4,1,0) ->  | BV143: 0 | CA143: 0 | CB143: 0
BC144: =COUNTIF($BF144:BF$146,TRUE) -> 1 | BD144: =COUNTIF($BF$140:BF144,TRUE) -> 1 | BE144: 5 | BF144: TRUE | BG144: =IF(BF144=TRUE,#REF!,0) ->  | BH144: =IF(BF144=TRUE,#REF!,0) ->  | BI144: Natalidade | BK144: =IF(BF144=TRUE,VLOOKUP(BG144,#REF!,13,0),0) ->  | BO144: =IF(#REF!=4,1,0) ->  | CA144: 0 | CB144: 0
BC145: =COUNTIF($BF145:BF$146,TRUE) -> 0 | BD145: =COUNTIF($BF$140:BF145,TRUE) -> 1 | BE145: 6 | BF145: FALSE | BG145: =IF(BF145=TRUE,#REF!,0) -> 0 | BH145: =IF(BF145=TRUE,#REF!,0) -> 0 | BI145: Natalidade | BK145: =IF(BF145=TRUE,VLOOKUP(BG145,#REF!,13,0),0) -> 00:00:00 | BL145: 0;0; 0 | BM145: 0 | BN145: 0 | BO145: =IF(#REF!=4,1,0) ->  | BV145: 0 | CA145: 0 | CB145: 0
BC146: =COUNTIF($BF$146:BF146,TRUE) -> 0 | BD146: =COUNTIF($BF$140:BF146,TRUE) -> 1 | BE146: 7 | BF146: FALSE | BG146: =IF(BF146=TRUE,#REF!,0) -> 0 | BH146: =IF(BF146=TRUE,#REF!,0) -> 0 | BI146: Creche e Jardim-Infância | BK146: =IF(BF146=TRUE,VLOOKUP(BG146,#REF!,13,0),0) -> 00:00:00 | BL146: 0;0; 0 | BM146: 0 | BN146: 0 | BO146: =IF(AND(#REF!=4,OR(AND(BM146=0,BN146>3),BM146>0),BP146=1,BS146=1,BX146=1),1,0) ->  | BP146: =IF(BF146=TRUE,VLOOKUP(BC146,#REF!,9,0),0) -> 0 | BS146: =IF(MONTH(TODAY())=9,1,0) -> 0 | BV146: 0 | BX146: =IF(BM146<6,1,0) -> 1 | CA146: =IF(BO146=1,25,"") ->  | CB146: =IF(BO146=0,"",VLOOKUP(BO146,$BO$167:$BP$168,2,0)) -> 
BC147: =COUNTIF($BF$146:BF147,TRUE) -> 0 | BD147: =COUNTIF($BF$140:BF147,TRUE) -> 1 | BE147: 8 | BF147: FALSE | BG147: =IF(BF147=TRUE,#REF!,0) -> 0 | BH147: =IF(BF147=TRUE,#REF!,0) -> 0 | BI147: Creche e Jardim-Infância | BK147: =IF(BF147=TRUE,VLOOKUP(BG147,#REF!,13,0),0) -> 00:00:00 | BL147: 0;0; 0 | BM147: 0 | BN147: 0 | BO147: =IF(AND(#REF!=4,OR(AND(BM147=0,BN147>3),BM147>0),BP147=1,BS147=1,BX147=1),1,0) ->  | BP147: =IF(BF147=TRUE,VLOOKUP(BC147,#REF!,9,0),0) -> 0 | BS147: =IF(MONTH(TODAY())=9,1,0) -> 0 | BV147: 0 | BX147: =IF(BM147<6,1,0) -> 1 | CB147: =IF(BO147=0,"",VLOOKUP(BO147,$BO$167:$BP$168,2,0)) -> 
BC148: =COUNTIF($BF$146:BF148,TRUE) -> 0 | BD148: =COUNTIF($BF$140:BF148,TRUE) -> 1 | BE148: 9 | BF148: FALSE | BG148: =IF(BF148=TRUE,#REF!,0) -> 0 | BH148: =IF(BF148=TRUE,#REF!,0) -> 0 | BI148: Creche e Jardim-Infância | BK148: =IF(BF148=TRUE,VLOOKUP(BG148,#REF!,13,0),0) -> 00:00:00 | BL148: 0;0; 0 | BM148: 0 | BN148: 0 | BO148: =IF(AND(#REF!=4,OR(AND(BM148=0,BN148>3),BM148>0),BP148=1,BS148=1,BX148=1),1,0) ->  | BP148: =IF(BF148=TRUE,VLOOKUP(BC148,#REF!,9,0),0) -> 0 | BS148: 0 | BV148: 0 | BX148: 1
BC149: =COUNTIF($BF$146:BF149,TRUE) -> 0 | BD149: =COUNTIF($BF$140:BF149,TRUE) -> 1 | BE149: 10 | BF149: FALSE | BG149: =IF(BF149=TRUE,#REF!,0) -> 0 | BH149: =IF(BF149=TRUE,#REF!,0) -> 0 | BI149: Creche e Jardim-Infância | BK149: =IF(BF149=TRUE,VLOOKUP(BG149,#REF!,13,0),0) -> 00:00:00 | BL149: 0;0; 0 | BM149: 0 | BN149: 0 | BO149: =IF(AND(#REF!=4,OR(AND(BM149=0,BN149>3),BM149>0),BP149=1,BS149=1,BX149=1),1,0) ->  | BP149: =IF(BF149=TRUE,VLOOKUP(BC149,#REF!,9,0),0) -> 0 | BS149: 0 | BV149: 0 | BX149: 1
BC150: =COUNTIF($BF$146:BF150,TRUE) -> 0 | BD150: =COUNTIF($BF$140:BF150,TRUE) -> 1 | BE150: 11 | BF150: FALSE | BG150: =IF(BF150=TRUE,#REF!,0) -> 0 | BH150: =IF(BF150=TRUE,#REF!,0) -> 0 | BI150: Creche e Jardim-Infância | BK150: =IF(BF150=TRUE,VLOOKUP(BG150,#REF!,13,0),0) -> 00:00:00 | BL150: 0;0; 0 | BM150: 0 | BN150: 0 | BO150: =IF(AND(#REF!=4,OR(AND(BM150=0,BN150>3),BM150>0),BP150=1,BS150=1,BX150=1),1,0) ->  | BP150: =IF(BF150=TRUE,VLOOKUP(BC150,#REF!,9,0),0) -> 0 | BS150: 0 | BV150: 0 | BX150: 1
BC151: =COUNTIF($BF$146:BF151,TRUE) -> 0 | BD151: =COUNTIF($BF$140:BF151,TRUE) -> 1 | BE151: 12 | BF151: FALSE | BG151: =IF(BF151=TRUE,#REF!,0) -> 0 | BH151: =IF(BF151=TRUE,#REF!,0) -> 0 | BI151: Creche e Jardim-Infância | BK151: =IF(BF151=TRUE,VLOOKUP(BG151,#REF!,13,0),0) -> 00:00:00 | BL151: 0;0; 0 | BM151: 0 | BN151: 0 | BO151: =IF(AND(#REF!=4,OR(AND(BM151=0,BN151>3),BM151>0),BP151=1,BS151=1,BX151=1),1,0) ->  | BP151: =IF(BF151=TRUE,VLOOKUP(BC151,#REF!,9,0),0) -> 0 | BS151: 0 | BV151: 0 | BX151: 1
BC152: =COUNTIF($BF$146:BF152,TRUE) -> 0 | BD152: =COUNTIF($BF$140:BF152,TRUE) -> 1 | BE152: 13 | BF152: FALSE | BG152: =IF(BF152=TRUE,#REF!,0) -> 0 | BH152: =IF(BF152=TRUE,#REF!,0) -> 0 | BI152: Livros e Material Escolar | BJ152: =IF(BF152=TRUE,VLOOKUP(BG152,#REF!,17,0),"") ->  | BK152: =IF(BF152=TRUE,VLOOKUP(BG152,#REF!,13,0),0) -> 00:00:00 | BL152: 0;0; 0 | BM152: 0 | BO152: =IF(AND(#REF!=4,BQ152=1,BS152=1,BR152=1,BY152=1),1,0) ->  | BQ152: =IF(BF152=TRUE,VLOOKUP(BC152,#REF!,10,0),0) -> 0 | BR152: =IF(AND(BF152=TRUE,$BU$137<$BU$133,$BS$137<$BS$133),1,0) ->  | BS152: 0 | BY152: =IF(AND(BM152>=6,BM152<25),1,0) -> 0 | CA152: =IF(BO152=1,VLOOKUP(BJ152,$BH$196:$BI$199,2,0),"") ->  | CB152: =IF(BO152=1,VLOOKUP(BJ152,$BH$196:$BJ$199,3,0),"") -> 
BC153: =COUNTIF($BF$146:BF153,TRUE) -> 0 | BD153: =COUNTIF($BF$140:BF153,TRUE) -> 1 | BE153: 14 | BF153: FALSE | BG153: =IF(BF153=TRUE,#REF!,0) -> 0 | BH153: =IF(BF153=TRUE,#REF!,0) -> 0 | BI153: Livros e Material Escolar | BJ153: =IF(BF153=TRUE,VLOOKUP(BG153,#REF!,17,0),"") ->  | BK153: =IF(BF153=TRUE,VLOOKUP(BG153,#REF!,13,0),0) -> 00:00:00 | BL153: 0;0; 0 | BM153: 0 | BO153: =IF(AND(#REF!=4,BQ153=1,BS153=1,BR153=1,BY153=1),1,0) ->  | BQ153: =IF(BF153=TRUE,VLOOKUP(BC153,#REF!,10,0),0) -> 0 | BR153: =IF(AND(BF153=TRUE,$BU$137<$BU$133,$BS$137<$BS$133),1,0) ->  | BS153: 0 | BY153: =IF(AND(BM153>=6,BM153<25),1,0) -> 0
BC154: =COUNTIF($BF$146:BF154,TRUE) -> 0 | BD154: =COUNTIF($BF$140:BF154,TRUE) -> 1 | BE154: 15 | BF154: FALSE | BG154: =IF(BF154=TRUE,#REF!,0) -> 0 | BH154: =IF(BF154=TRUE,#REF!,0) -> 0 | BI154: Livros e Material Escolar | BJ154: =IF(BF154=TRUE,VLOOKUP(BG154,#REF!,17,0),"") ->  | BK154: =IF(BF154=TRUE,VLOOKUP(BG154,#REF!,13,0),0) -> 00:00:00 | BL154: 0;0; 0 | BM154: 0 | BO154: =IF(AND(#REF!=4,BQ154=1,BS154=1,BR154=1,BY154=1),1,0) ->  | BQ154: =IF(BF154=TRUE,VLOOKUP(BC154,#REF!,10,0),0) -> 0 | BS154: 0 | BY154: 0
BC155: =COUNTIF($BF$146:BF155,TRUE) -> 0 | BD155: =COUNTIF($BF$140:BF155,TRUE) -> 1 | BE155: 16 | BF155: FALSE | BG155: =IF(BF155=TRUE,#REF!,0) -> 0 | BH155: =IF(BF155=TRUE,#REF!,0) -> 0 | BI155: Livros e Material Escolar | BJ155: =IF(BF155=TRUE,VLOOKUP(BG155,#REF!,17,0),"") ->  | BK155: =IF(BF155=TRUE,VLOOKUP(BG155,#REF!,13,0),0) -> 00:00:00 | BL155: 0;0; 0 | BM155: 0 | BO155: =IF(AND(#REF!=4,BQ155=1,BS155=1,BR155=1,BY155=1),1,0) ->  | BQ155: =IF(BF155=TRUE,VLOOKUP(BC155,#REF!,10,0),0) -> 0 | BS155: 0 | BY155: 0
BC156: =COUNTIF($BF$146:BF156,TRUE) -> 0 | BD156: =COUNTIF($BF$140:BF156,TRUE) -> 1 | BE156: 17 | BF156: FALSE | BG156: =IF(BF156=TRUE,#REF!,0) -> 0 | BH156: =IF(BF156=TRUE,#REF!,0) -> 0 | BI156: Livros e Material Escolar | BJ156: =IF(BF156=TRUE,VLOOKUP(BG156,#REF!,17,0),"") ->  | BK156: =IF(BF156=TRUE,VLOOKUP(BG156,#REF!,13,0),0) -> 00:00:00 | BL156: 0;0; 0 | BM156: 0 | BO156: =IF(AND(#REF!=4,BQ156=1,BS156=1,BR156=1,BY156=1),1,0) ->  | BQ156: =IF(BF156=TRUE,VLOOKUP(BC156,#REF!,10,0),0) -> 0 | BS156: 0 | BY156: 0
BC157: =COUNTIF($BF$146:BF157,TRUE) -> 0 | BD157: =COUNTIF($BF$140:BF157,TRUE) -> 1 | BE157: 18 | BF157: FALSE | BG157: =IF(BF157=TRUE,#REF!,0) -> 0 | BH157: =IF(BF157=TRUE,#REF!,0) -> 0 | BI157: Livros e Material Escolar | BJ157: =IF(BF157=TRUE,VLOOKUP(BG157,#REF!,17,0),"") ->  | BK157: =IF(BF157=TRUE,VLOOKUP(BG157,#REF!,13,0),0) -> 00:00:00 | BL157: 0;0; 0 | BM157: 0 | BO157: =IF(AND(#REF!=4,BQ157=1,BS157=1,BR157=1,BY157=1),1,0) ->  | BQ157: =IF(BF157=TRUE,VLOOKUP(BC157,#REF!,10,0),0) -> 0 | BS157: 0 | BY157: 0
BC158: =COUNTIF($BF$146:BF158,TRUE) -> 0 | BD158: =COUNTIF($BF$140:BF158,TRUE) -> 1 | BE158: 19 | BF158: FALSE | BG158: =IF(BF158=TRUE,#REF!,0) -> 0 | BH158: =IF(BF158=TRUE,#REF!,0) -> 0 | BI158: Saúde e Alimentação | BK158: =IF(BF158=TRUE,VLOOKUP(BG158,#REF!,13,0),0) -> 00:00:00 | BL158: 0;0; 0 | BM158: 0 | BO158: =IF(BZ158=1,IF($BS$137/$BS$131>=6,6,$BS$137/$BS$131),0) ->  | BZ158: =IF(BM158<25,1,0) -> 1 | CA158: =IF(BO158=0,0,VLOOKUP(BO158,BR168:BU174,4,1)) ->  | CB158: =VLOOKUP(CA158,$BU$168:$BV$174,2,0) -> 
BC159: =COUNTIF($BF$146:BF159,TRUE) -> 0 | BD159: =COUNTIF($BF$140:BF159,TRUE) -> 1 | BE159: 20 | BF159: FALSE | BG159: =IF(BF159=TRUE,#REF!,0) -> 0 | BH159: =IF(BF159=TRUE,#REF!,0) -> 0 | BI159: Saúde e Alimentação | BK159: =IF(BF159=TRUE,VLOOKUP(BG159,#REF!,13,0),0) -> 00:00:00 | BL159: 0;0; 0 | BM159: 0 | BO159: =IF(BZ159=1,IF($BS$137/$BS$131>=6,6,$BS$137/$BS$131),0) ->  | BZ159: =IF(BM159<25,1,0) -> 1 | CA159: =IF(BO159=0,0,VLOOKUP(BO159,BR169:BU175,4,1)) ->  | CB159: =VLOOKUP(CA159,$BU$168:$BV$174,2,0) -> 
BC160: =COUNTIF($BF$146:BF160,TRUE) -> 0 | BD160: =COUNTIF($BF$140:BF160,TRUE) -> 1 | BE160: 21 | BF160: FALSE | BG160: =IF(BF160=TRUE,#REF!,0) -> 0 | BH160: =IF(BF160=TRUE,#REF!,0) -> 0 | BI160: Saúde e Alimentação | BK160: =IF(BF160=TRUE,VLOOKUP(BG160,#REF!,13,0),0) -> 00:00:00 | BL160: 0;0; 0 | BM160: 0 | BZ160: 1
BC161: =COUNTIF($BF$146:BF161,TRUE) -> 0 | BD161: =COUNTIF($BF$140:BF161,TRUE) -> 1 | BE161: 22 | BF161: FALSE | BG161: =IF(BF161=TRUE,#REF!,0) -> 0 | BH161: =IF(BF161=TRUE,#REF!,0) -> 0 | BI161: Saúde e Alimentação | BK161: =IF(BF161=TRUE,VLOOKUP(BG161,#REF!,13,0),0) -> 00:00:00 | BL161: 0;0; 0 | BM161: 0 | BZ161: 1
BC162: =COUNTIF($BF$146:BF162,TRUE) -> 0 | BD162: =COUNTIF($BF$140:BF162,TRUE) -> 1 | BE162: 23 | BF162: FALSE | BG162: =IF(BF162=TRUE,#REF!,0) -> 0 | BH162: =IF(BF162=TRUE,#REF!,0) -> 0 | BI162: Saúde e Alimentação | BK162: =IF(BF162=TRUE,VLOOKUP(BG162,#REF!,13,0),0) -> 00:00:00 | BL162: 0;0; 0 | BM162: 0 | BZ162: 1
BC163: =COUNTIF($BF$146:BF163,TRUE) -> 0 | BD163: =COUNTIF($BF$140:BF163,TRUE) -> 1 | BE163: 24 | BF163: FALSE | BG163: =IF(BF163=TRUE,#REF!,0) -> 0 | BH163: =IF(BF163=TRUE,#REF!,0) -> 0 | BI163: Saúde e Alimentação | BK163: =IF(BF163=TRUE,VLOOKUP(BG163,#REF!,13,0),0) -> 00:00:00 | BL163: 0;0; 0 | BM163: 0 | BZ163: 1
BC165: 1 | BD165: 2 | BE165: 3 | BF165: 4 | BG165: 5 | BH165: 6 | BI165: 7 | BJ165: 8 | BK165: 9 | BL165: 10 | BM165: 11
BC166: cod. Nat. | BD166: FILHOS | BE166: IDADE EM ANOS | BF166: cod. Rend.anual | BG166: MINIMO rendimento | BH166: MAXIMO rendimento | BI166: VALOR subvenção | BK166: percentagem | BL166: total mês | BM166: texto
BC167: =CONCATENATE(BD167,BE167,BF167) -> 101 | BD167: 1 | BE167: 0 | BF167: 1 | BG167: 0 | BH167: 7000 | BI167: 50 | BK167: 0.5 | BL167: =BI167*BK167 -> 25 | BM167: 25,00 € /Mês | BO167: 1 | BP167: 25,00 € /Mês
BC168: =CONCATENATE(BD168,BE168,BF168) -> 201 | BD168: 2 | BE168: 0 | BF168: 1 | BG168: 0 | BH168: 7000 | BI168: 50 | BK168: 0.75 | BL168: =BI168*BK168 -> 37.5 | BM168: 37,50 € /Mês | BO168: 0 | BP168: 0 | BR168: 0 | BS168: 421.32 | BT168: =BR168*BS168 -> 0 | BU168: 200 | BV168: 200,00 € /Ano/Agr
BC169: 301 | BD169: 3 | BE169: 0 | BF169: 1 | BG169: 0 | BH169: 7000 | BI169: 50 | BK169: 1 | BL169: =BI169*BK169 -> 50 | BM169: 50,00 € /Mês | BR169: 1 | BS169: 421.32 | BT169: =BR169*BS169 -> 421.32 | BU169: 150 | BV169: 150,00 € /Ano/Agr
BC170: 111 | BD170: 1 | BE170: 1 | BF170: 1 | BG170: 0 | BH170: 7000 | BI170: 50 | BK170: 0.75 | BL170: =BL167*BK170 -> 18.75 | BM170: 18,75 € /Mês | BR170: 2 | BS170: 421.32 | BT170: 842.64 | BU170: 130 | BV170: 130,00 € /Ano/Agr
BC171: 211 | BD171: 2 | BE171: 1 | BF171: 1 | BG171: 0 | BH171: 7000 | BI171: 50 | BK171: 0.75 | BL171: =BL168*BK171 -> 28.125 | BM171: 28,13 € /Mês | BR171: 3 | BS171: 421.32 | BT171: 1263.96 | BU171: 100 | BV171: 100,00 € /Ano/Agr
BC172: 311 | BD172: 3 | BE172: 1 | BF172: 1 | BG172: 0 | BH172: 7000 | BI172: 50 | BK172: 0.75 | BL172: =BL169*BK172 -> 37.5 | BM172: 37,50 € /Mês | BR172: 4 | BS172: 421.32 | BT172: 1685.28 | BU172: 80 | BV172: 80,00 € /Ano/Agr
BC173: 121 | BD173: 1 | BE173: 2 | BF173: 1 | BG173: 0 | BH173: 7000 | BI173: 50 | BK173: 0.5 | BL173: =BK173*BL167 -> 12.5 | BM173: 12,50 € /Mês | BR173: 5 | BS173: 421.32 | BT173: 2106.6 | BU173: 50 | BV173: 50,00 € /Ano/Agr
BC174: 221 | BD174: 2 | BE174: 2 | BF174: 1 | BG174: 0 | BH174: 7000 | BI174: 50 | BK174: 0.5 | BL174: =BK174*BL168 -> 18.75 | BM174: 18,75 € /Mês | BR174: 6 | BU174: 0 | BV174: 0,00 € /Ano/Agr
BC175: 321 | BD175: 3 | BE175: 2 | BF175: 1 | BG175: 0 | BH175: 7000 | BI175: 50 | BK175: 0.5 | BL175: =BK175*BL169 -> 25 | BM175: 25,00 € /Mês
BC176: 102 | BD176: 1 | BE176: 0 | BF176: 2 | BG176: 7000 | BH176: 20000 | BI176: 42.5 | BK176: 0.5 | BL176: =BI176*BK176 -> 21.25 | BM176: 21,25 € /Mês
BC177: 202 | BD177: 2 | BE177: 0 | BF177: 2 | BG177: 7000 | BH177: 20000 | BI177: 42.5 | BK177: 0.75 | BL177: =BI177*BK177 -> 31.875 | BM177: 31,88 € /Mês
BC178: 302 | BD178: 3 | BE178: 0 | BF178: 2 | BG178: 7000 | BH178: 20000 | BI178: 42.5 | BK178: 1 | BL178: =BI178*BK178 -> 42.5 | BM178: 42,50 € /Mês
BC179: 112 | BD179: 1 | BE179: 1 | BF179: 2 | BG179: 7000 | BH179: 20000 | BI179: 42.5 | BK179: 0.75 | BL179: =BK179*BL176 -> 15.9375 | BM179: 15,94 € /Mês
BC180: 212 | BD180: 2 | BE180: 1 | BF180: 2 | BG180: 7000 | BH180: 20000 | BI180: 42.5 | BK180: 0.75 | BL180: =BK180*BL177 -> 23.90625 | BM180: 23,91 € /Mês
BC181: 312 | BD181: 3 | BE181: 1 | BF181: 2 | BG181: 7000 | BH181: 20000 | BI181: 42.5 | BK181: 0.75 | BL181: =BK181*BL178 -> 31.875 | BM181: 31,88 € /Mês
BC182: 122 | BD182: 1 | BE182: 2 | BF182: 2 | BG182: 7000 | BH182: 20000 | BI182: 42.5 | BK182: 0.5 | BL182: =BK182*BL176 -> 10.625 | BM182: 10,63 € /Mês
BC183: 222 | BD183: 2 | BE183: 2 | BF183: 2 | BG183: 7000 | BH183: 20000 | BI183: 42.5 | BK183: 0.5 | BL183: =BK183*BL177 -> 15.9375 | BM183: 15,94 € /Mês
BC184: 322 | BD184: 3 | BE184: 2 | BF184: 2 | BG184: 7000 | BH184: 20000 | BI184: 42.5 | BK184: 0.5 | BL184: =BK184*BL178 -> 21.25 | BM184: 21,25 € /Mês
BC185: 203 | BD185: 2 | BE185: 0 | BF185: 3 | BG185: 20000 | BH185: 40000 | BI185: 32.5 | BK185: 0.75 | BL185: =BI185*BK185 -> 24.375 | BM185: 24,38 € /Mês
BC186: 303 | BD186: 3 | BE186: 0 | BF186: 3 | BG186: 20000 | BH186: 40000 | BI186: 32.5 | BK186: 1 | BL186: =BI186*BK186 -> 32.5 | BM186: 32,50 € /Mês
BC187: 213 | BD187: 2 | BE187: 1 | BF187: 3 | BG187: 20000 | BH187: 40000 | BI187: 32.5 | BK187: 0.75 | BL187: =BK187*BL185 -> 18.28125 | BM187: 18,28 € /Mês
BC188: 313 | BD188: 3 | BE188: 1 | BF188: 3 | BG188: 20000 | BH188: 40000 | BI188: 32.5 | BK188: 0.75 | BL188: =BK188*BL186 -> 24.375 | BM188: 24,38 € /Mês
BC189: 223 | BD189: 2 | BE189: 2 | BF189: 3 | BG189: 20000 | BH189: 40000 | BI189: 32.5 | BK189: 0.5 | BL189: =BK189*BL185 -> 12.1875 | BM189: 12,19 € /Mês
BC190: 323 | BD190: 3 | BE190: 2 | BF190: 3 | BG190: 20000 | BH190: 40000 | BI190: 32.5 | BK190: 0.5 | BL190: =BK190*BL186 -> 16.25 | BM190: 16,25 € /Mês
BC191: 304 | BD191: 3 | BE191: 0 | BF191: 4 | BG191: 40000 | BH191: 80000 | BI191: 25 | BK191: 1 | BL191: =BI191*BK191 -> 25 | BM191: 25,00 € /Mês
BC192: 314 | BD192: 3 | BE192: 1 | BF192: 4 | BG192: 40000 | BH192: 80000 | BI192: 25 | BK192: 0.75 | BL192: =BK192*BL191 -> 18.75 | BM192: 18,75 € /Mês
BC193: 324 | BD193: 3 | BE193: 2 | BF193: 4 | BG193: 40000 | BH193: 80000 | BI193: 25 | BK193: 0.5 | BL193: =BK193*BL191 -> 12.5 | BM193: 12,50 € /Mês
BC196: 0 | BD196: 7000 | BE196: 1 | BH196: 1º Ciclo (até ao 4º ano) | BI196: 20 | BJ196: 20,00 € /Ano
BC197: 7000.01 | BD197: 20000 | BE197: 2 | BH197: 2º Ciclo (até ao 6º ano) | BI197: 40 | BJ197: 40,00 € /Ano
BC198: 20000.01 | BD198: 40000 | BE198: 3 | BH198: 3º Ciclo (até ao 9º ano) | BI198: 70 | BJ198: 70,00 € /Ano
BC199: 40000.01 | BD199: 80000 | BE199: 4 | BH199: Secundário (até ao 12º ano) | BI199: 100 | BJ199: 100,00 € /Ano
AAW945: 1 | AAX945: Imaculado Coração de Maria | AAY945: 1 | AAZ945: Casado(a) | ABA945: 1 | ABB945: Sem Habilitações | ABC945: SemHabiltações | ABD945: 1 | ABE945: Categoria | ABF945: SEM HABILITAÇÕES
AAW946: 2 | AAX946: Monte | AAY946: 2 | AAZ946: Divorciado(a) | ABA946: 2 | ABB946: 1º Ciclo (até ao 4º ano) | ABC946: 1Ciclo | ABD946: 2
AAW947: 3 | AAX947: Santa Luzia | AAY947: 3 | AAZ947: Solteiro(a) | ABA947: 3 | ABB947: 2º Ciclo (até ao 6º ano) | ABC947: 2e3Ciclo | ABD947: 3 | ABE947: Pré-escolar | ABF947: Centro Infantil Maria Eugénia Canavial | ABG947: Privado | ABH947: SEM HABILITAÇÕES
AAW948: 4 | AAX948: Santa Maria Maior | AAY948: 4 | AAZ948: Viúvo(a) | ABA948: 4 | ABB948: 3º Ciclo (até ao 9º ano) | ABC948: 2e3Ciclo | ABD948: 4 | ABE948: Pré-escolar | ABF948: Centro Social e Paroquial da Graça | ABG948: Privado | ABH948: SEM HABILITAÇÕES
AAW949: 5 | AAX949: Santo António | AAY949: 5 | AAZ949: União de fato | ABA949: 5 | ABB949: Secundário (até ao 12º ano) | ABC949: Secundário | ABD949: 5 | ABE949: Pré-escolar | ABF949: Creche do Livramento | ABG949: Privado | ABH949: SEM HABILITAÇÕES
AAW950: 6 | AAX950: São Gonçalo | ABA950: 6 | ABB950: Licenciatura | ABD950: 6 | ABE950: Pré-escolar | ABF950: Inf. O Canto dos Reguilas | ABG950: Privado | ABH950: SEM HABILITAÇÕES
AAW951: 7 | AAX951: São Martinho | ABD951: 7 | ABE951: Pré-escolar | ABF951: Inf. Planeta das Crianças | ABG951: Privado | ABH951: SEM HABILITAÇÕES
AAW952: 8 | AAX952: São Pedro | ABD952: 8 | ABE952: Pré-escolar | ABF952: Inf. A Rochinha | ABG952: Privado | ABH952: SEM HABILITAÇÕES
AAW953: 9 | AAX953: São Roque | ABD953: 9 | ABE953: Pré-escolar | ABF953: Inf. As Capuchinhas | ABG953: Privado | ABH953: SEM HABILITAÇÕES
AAW954: 10 | AAX954: Sé | ABD954: 10 | ABE954: Pré-escolar | ABF954: Inf. D. Olga de Brito | ABG954: Privado | ABH954: SEM HABILITAÇÕES
ABD955: 11 | ABE955: Pré-escolar | ABF955: Inf. Donamina - Cruz Vermelha | ABG955: Privado | ABH955: SEM HABILITAÇÕES
ABD956: 12 | ABE956: Pré-escolar | ABF956: Inf. O Carrocel | ABG956: Público | ABH956: SEM HABILITAÇÕES
AAU957: 1 | AAV957: janeiro | ABD957: 13 | ABE957: Pré-escolar | ABF957: Inf. O Girassol | ABG957: Público | ABH957: SEM HABILITAÇÕES
AAU958: 2 | AAV958: fevereiro | AAX958: Cônjuge | ABD958: 14 | ABE958: Pré-escolar | ABF958: Inf. O Pimpão | ABG958: Privado | ABH958: SEM HABILITAÇÕES
AAU959: 3 | AAV959: março | AAX959: União de facto | ABD959: 15 | ABE959: Pré-escolar | ABF959: Inf. O Polegarzinho | ABG959: Privado | ABH959: SEM HABILITAÇÕES
AAU960: 4 | AAV960: abril | AAX960: Dependente | ABD960: 16 | ABE960: Pré-escolar | ABF960: Inf. O Sapatinho | ABG960: Público | ABH960: SEM HABILITAÇÕES
AAU961: 5 | AAV961: maio | AAX961: Outro | ABD961: 17 | ABE961: Pré-escolar | ABF961: Inf. Os Louros | ABG961: Público | ABH961: SEM HABILITAÇÕES
AAU962: 6 | AAV962: junho | ABD962: 18 | ABE962: Pré-escolar | ABF962: Inf. Primaveras | ABG962: Privado | ABH962: SEM HABILITAÇÕES
AAU963: 7 | AAV963: julho | ABD963: 19 | ABE963: Pré-escolar | ABF963: Inf. Rainha Sílvia | ABG963: Privado | ABH963: SEM HABILITAÇÕES
AAU964: 8 | AAV964: agosto | ABD964: 20 | ABE964: Pré-escolar | ABF964: Inf. Refúgio do Bebé | ABG964: Privado | ABH964: SEM HABILITAÇÕES
AAU965: 9 | AAV965: setembro | ABD965: 21 | ABE965: Pré-escolar | ABF965: Inf. Refúgio do Bebé II | ABG965: Privado | ABH965: SEM HABILITAÇÕES
AAU966: 10 | AAV966: outubro | ABD966: 22 | ABE966: Pré-escolar | ABF966: Inf. S. Gonçalo | ABG966: Público | ABH966: SEM HABILITAÇÕES
AAU967: 11 | AAV967: novembro | ABD967: 23 | ABE967: Pré-escolar | ABF967: Inf. Cidade dos brinquedos | ABG967: Privado | ABH967: SEM HABILITAÇÕES
AAU968: 12 | AAV968: dezembro | ABD968: 24 | ABE968: Pré-escolar | ABF968: Jardim Escola João de Deus | ABG968: Privado | ABH968: SEM HABILITAÇÕES
ABD969: 25 | ABE969: Pré-escolar | ABF969: JI Nossa Sra. Conceição | ABG969: Privado | ABH969: SEM HABILITAÇÕES
ABD970: 26 | ABE970: Pré-escolar | ABF970: JI Patronato S. Pedro | ABG970: Privado | ABH970: SEM HABILITAÇÕES
ABD971: 27 | ABE971: Pré-escolar | ABF971: Quinta dos Traquinas (ASM4S) | ABG971: Privado | ABH971: SEM HABILITAÇÕES
ABD972: 28 | ABE972: Pré-escolar | ABF972: Toca dos Traquinas | ABG972: Privado | ABH972: SEM HABILITAÇÕES
ABD973: 29
ABD974: 30 | ABF974: 1º CICLO
ABD975: 31 | ABE975: 1º ciclo | ABF975: Auxílio Maternal do Funchal | ABG975: Privado | ABH975: 1º Ciclo (até ao 4º ano)
ABD976: 32 | ABE976: 1º ciclo | ABF976: Centro Reab. Psicoped. Sagrada Família | ABG976: Privado | ABH976: 1º Ciclo (até ao 4º ano)
ABD977: 33 | ABE977: 1º ciclo | ABF977: Colégio de Apresentação de Maria | ABG977: Privado | ABH977: 1º Ciclo (até ao 4º ano)
ABD978: 34 | ABE978: 1º ciclo | ABF978: Colégio de Santa Teresinha | ABG978: Privado | ABH978: 1º Ciclo (até ao 4º ano)
ABD979: 35 | ABE979: 1º ciclo | ABF979: Colégio do Marítimo | ABG979: Público | ABH979: 1º Ciclo (até ao 4º ano)
ABD980: 36 | ABE980: 1º ciclo | ABF980: Colégio do Marítimo | ABG980: Privado | ABH980: 1º Ciclo (até ao 4º ano)
ABD981: 37 | ABE981: 1º ciclo | ABF981: Colégio Infante D. Henrique | ABG981: Privado | ABH981: 1º Ciclo (até ao 4º ano)
ABD982: 38 | ABE982: 2º ciclo | ABF982: Colégio Infante D. Henrique | ABG982: Público | ABH982: 1º Ciclo (até ao 4º ano)
ABD983: 39 | ABE983: 1º ciclo | ABF983: EB 123/PE Bartolomeu Perestrelo | ABG983: Público | ABH983: 1º Ciclo (até ao 4º ano)
ABD984: 40 | ABE984: 1º ciclo | ABF984: EB1/PE da Achada | ABG984: Público | ABH984: 1º Ciclo (até ao 4º ano)
ABD985: 41 | ABE985: 1º ciclo | ABF985: EB1/PE da Ajuda | ABG985: Público | ABH985: 1º Ciclo (até ao 4º ano)
ABD986: 42 | ABE986: 1º ciclo | ABF986: EB1/PE da Cruz de Carvalho | ABG986: Público | ABH986: 1º Ciclo (até ao 4º ano)
ABD987: 43 | ABE987: 1º ciclo | ABF987: EB1/PE da Ladeira | ABG987: Público | ABH987: 1º Ciclo (até ao 4º ano)
ABD988: 44 | ABE988: 1º ciclo | ABF988: EB1/PE da Lombada (São Martinho) | ABG988: Público | ABH988: 1º Ciclo (até ao 4º ano)
ABD989: 45 | ABE989: 1º ciclo | ABF989: EB1/PE da Nazaré | ABG989: Público | ABH989: 1º Ciclo (até ao 4º ano)
ABD990: 46 | ABE990: 1º ciclo | ABF990: EB1/PE da Pena | ABG990: Público | ABH990: 1º Ciclo (até ao 4º ano)
ABD991: 47 | ABE991: 1º ciclo | ABF991: EB1/PE da Visconde Cacongo (acolheu Faial) | ABG991: Público | ABH991: 1º Ciclo (até ao 4º ano)
ABD992: 48 | ABE992: 1º ciclo | ABF992: EB1/PE de S. Martinho | ABG992: Público | ABH992: 1º Ciclo (até ao 4º ano)
ABD993: 49 | ABE993: 1º ciclo | ABF993: EB1/PE de S.Gonçalo | ABG993: Público | ABH993: 1º Ciclo (até ao 4º ano)
ABD994: 50 | ABE994: 1º ciclo | ABF994: EB1/PE de São Filipe (acolheu Aspirante Mota Freitas) | ABG994: Público | ABH994: 1º Ciclo (até ao 4º ano)
ABD995: 51 | ABE995: 1º ciclo | ABF995: EB1/PE do Areeiro | ABG995: Público | ABH995: 1º Ciclo (até ao 4º ano)
ABD996: 52 | ABE996: 1º ciclo | ABF996: EB1/PE do Boliqueime | ABG996: Público | ABH996: 1º Ciclo (até ao 4º ano)
ABD997: 53 | ABE997: 1º ciclo | ABF997: EB1/PE do Galeão | ABG997: Público | ABH997: 1º Ciclo (até ao 4º ano)
ABD998: 54 | ABE998: 1º ciclo | ABF998: EB1/PE do Livramento | ABG998: Público | ABH998: 1º Ciclo (até ao 4º ano)
ABD999: 55 | ABE999: 1º ciclo | ABF999: EB1/PE do Lombo Segundo | ABG999: Público | ABH999: 1º Ciclo (até ao 4º ano)
ABD1000: 56 | ABE1000: 1º ciclo | ABF1000: EB1/PE do Palheiro Ferreiro | ABG1000: Público | ABH1000: 1º Ciclo (até ao 4º ano)
ABD1001: 57 | ABE1001: 1º ciclo | ABF1001: EB1/PE do Tanque, Monte | ABG1001: Público | ABH1001: 1º Ciclo (até ao 4º ano)
ABD1002: 58 | ABE1002: 1º ciclo | ABF1002: EB1/PE do Tanque, Sto António | ABG1002: Público | ABH1002: 1º Ciclo (até ao 4º ano)
ABD1003: 59 | ABE1003: 1º ciclo | ABF1003: EB1/PE dos Ilhéus - Coronel Sarmento | ABG1003: Público | ABH1003: 1º Ciclo (até ao 4º ano)
ABD1004: 60 | ABE1004: 1º ciclo | ABF1004: EB1/PE Prof. Eleutério de Aguiar (acolheu B1ºC dos Louros ) | ABG1004: Público | ABH1004: 1º Ciclo (até ao 4º ano)
ABD1005: 61 | ABE1005: 1º ciclo | ABF1005: EB1/PE Ribº Domingos Dias | ABG1005: Público | ABH1005: 1º Ciclo (até ao 4º ano)
ABD1006: 62 | ABE1006: 1º ciclo | ABF1006: Escola D. Olga de Brito | ABG1006: Privado | ABH1006: 1º Ciclo (até ao 4º ano)
ABD1007: 63 | ABE1007: 1º ciclo | ABF1007: Escola Internacional da Madeira | ABG1007: Privado | ABH1007: 1º Ciclo (até ao 4º ano)
ABD1008: 64 | ABE1008: 1º ciclo | ABF1008: Escola Maria Eugénia Canavial | ABG1008: Privado | ABH1008: 1º Ciclo (até ao 4º ano)
ABD1009: 65 | ABE1009: 1º ciclo | ABF1009: Escola Salesiana de Artes e Ofícios | ABG1009: Privado | ABH1009: 1º Ciclo (até ao 4º ano)
ABD1010: 66 | ABE1010: 1º ciclo | ABF1010: Estabelecimento Vila Mar | ABG1010: Público | ABH1010: 1º Ciclo (até ao 4º ano)
ABD1011: 67 | ABE1011: 1º ciclo | ABF1011: Ext. Adventista | ABG1011: Privado | ABH1011: 1º Ciclo (até ao 4º ano)
ABD1012: 68 | ABE1012: 1º ciclo | ABF1012: Ext. Bom Jesus | ABG1012: Privado | ABH1012: 1º Ciclo (até ao 4º ano)
ABD1013: 69 | ABE1013: 1º ciclo | ABF1013: Ext. Júlio Dinis | ABG1013: Privado | ABH1013: 1º Ciclo (até ao 4º ano)
ABD1014: 70 | ABE1014: 1º ciclo | ABF1014: Ext. Princesa D. Maria Amélia | ABG1014: Privado | ABH1014: 1º Ciclo (até ao 4º ano)
ABD1015: 71 | ABE1015: 1º ciclo | ABF1015: Ext. S. João | ABG1015: Privado | ABH1015: 1º Ciclo (até ao 4º ano)
ABD1016: 72 | ABE1016: 1º ciclo | ABF1016: Fundação Sta. Luisa de Marillac | ABG1016: Privado | ABH1016: 1º Ciclo (até ao 4º ano)
ABD1017: 73 | ABE1017: 2º ciclo | ABF1017: Madeira Multilanguage school | ABG1017: Privado | ABH1017: 1º Ciclo (até ao 4º ano)
ABD1018: 74 | ABE1018: 3º ciclo | ABF1018: Semi-Internato Sta. Clara | ABG1018: Privado | ABH1018: 1º Ciclo (até ao 4º ano)
ABD1019: 75
ABD1020: 76 | ABF1020: 2º e 3º CICLOS
ABD1021: 77 | ABE1021: 2º e 3º ciclos | ABF1021: Colégio Apresentação de Maria | ABG1021: Privado | ABH1021: 2º Ciclo (até ao 6º ano) | ABI1021: 3º Ciclo (até ao 9º ano)
ABD1022: 78 | ABE1022: 2º e 3º ciclos | ABF1022: Colégio Infante D. Henrique | ABG1022: Privado | ABH1022: 2º Ciclo (até ao 6º ano) | ABI1022: 3º Ciclo (até ao 9º ano)
ABD1023: 79 | ABE1023: 2º e 3º ciclos | ABF1023: Colégio Infante D. Henrique | ABG1023: Público | ABH1023: 2º Ciclo (até ao 6º ano) | ABI1023: 3º Ciclo (até ao 9º ano)
ABD1024: 80 | ABE1024: 2º e 3º ciclos | ABF1024: Colégio Santa Teresinha | ABG1024: Privado | ABH1024: 2º Ciclo (até ao 6º ano) | ABI1024: 3º Ciclo (até ao 9º ano)
ABD1025: 81 | ABE1025: 2º e 3º ciclos | ABF1025: EB 1 2 3/PE Bartolomeu Perestrelo | ABG1025: Público | ABH1025: 2º Ciclo (até ao 6º ano) | ABI1025: 3º Ciclo (até ao 9º ano)
ABD1026: 82 | ABE1026: 2º e 3º ciclos | ABF1026: EB 2 3 de Santo António | ABG1026: Público | ABH1026: 2º Ciclo (até ao 6º ano) | ABI1026: 3º Ciclo (até ao 9º ano)
ABD1027: 83 | ABE1027: 2º e 3º ciclos | ABF1027: EB 2 3 Dr. Eduardo Brazão de Castro | ABG1027: Público | ABH1027: 2º Ciclo (até ao 6º ano) | ABI1027: 3º Ciclo (até ao 9º ano)
ABD1028: 84 | ABE1028: 2º e 3º ciclos | ABF1028: EB 2 3 Dr. Horácio Bento Gouveia | ABG1028: Público | ABH1028: 2º Ciclo (até ao 6º ano) | ABI1028: 3º Ciclo (até ao 9º ano)
ABD1029: 85 | ABE1029: 2º e 3º ciclos | ABF1029: EB 2 3 Louros | ABG1029: Público | ABH1029: 2º Ciclo (até ao 6º ano) | ABI1029: 3º Ciclo (até ao 9º ano)
ABD1030: 86 | ABE1030: 3º e 3º ciclos | ABF1030: Estabelecimento Crianças e Jovens Vila Mar | ABG1030: Público | ABH1030: 2º Ciclo (até ao 6º ano) | ABI1030: 3º Ciclo (até ao 9º ano)
ABD1031: 87 | ABE1031: 4º e 3º ciclos | ABF1031: Salesiana de Artes e Ofícios | ABG1031: Privado | ABH1031: 2º Ciclo (até ao 6º ano) | ABI1031: 3º Ciclo (até ao 9º ano)
ABD1032: 88
ABD1033: 89 | ABF1033: SECUNDÁRIO
ABD1034: 90 | ABE1034: Secundário | ABF1034: APEL - Associação Promotora do Ensino Livre | ABG1034: Privado | ABH1034: Secundário (até ao 12º ano)
ABD1035: 91 | ABE1035: Secundário | ABF1035: Conservatório + Escola Profissional de Artes | ABG1035: Público | ABH1035: Secundário (até ao 12º ano)
ABD1036: 92 | ABE1036: Secundário | ABF1036: Direcção Regional de Qualificação Profissional | ABG1036: Público | ABH1036: Secundário (até ao 12º ano)
ABD1037: 93 | ABE1037: Profisional | ABF1037: Escola Básica e Secundária Gonçalves Zarco | ABG1037: Público | ABH1037: Secundário (até ao 12º ano)
ABD1038: 94 | ABE1038: Profisional | ABF1038: Escola Profissional Cristovão Colombo | ABG1038: Privado | ABH1038: Secundário (até ao 12º ano)
ABD1039: 95 | ABE1039: Profisional | ABF1039: Escola Profissional Dr. Francisco Fernandes | ABG1039: Público | ABH1039: Secundário (até ao 12º ano)
ABD1040: 96 | ABE1040: Profisional | ABF1040: Escola Profissional Hotelaria e Turismo da Madeira | ABG1040: Privado | ABH1040: Secundário (até ao 12º ano)
ABD1041: 97 | ABE1041: Profisional | ABF1041: Escola Secundária Dr. Ângelo A. Silva | ABG1041: Público | ABH1041: Secundário (até ao 12º ano)
ABD1042: 98 | ABE1042: Profisional | ABF1042: Escola Secundária Francisco Franco | ABG1042: Público | ABH1042: Secundário (até ao 12º ano)
ABD1043: 99 | ABE1043: Profisional | ABF1043: Escola Secundária Jaime Moniz | ABG1043: Público | ABH1043: Secundário (até ao 12º ano)
... 5 more rows
